fUST/lending_fUST_20251008
["ID","MTS","AMOUNT","RATE_DAILY","PERIOD"]
[389971366,1759913453607,-180.11,0.00021643,2]
[389971368,1759913453617,-954.16,0.00021643,2]
[389971370,1759913453626,-500.0,0.00021643,2]
[389971372,1759913453635,-151.0,0.00021643,7]
[389971374,1759913453644,-151.0,0.00021643,7]
[389971376,1759913453654,-151.86541,0.00021643,7]
[389971377,1759913453664,-500.0,0.00021643,2]
[389971379,1759913453673,-500.0,0.00021643,2]
[389971381,1759913453684,-1299.66,0.00021643,2]
[389971382,1759913453693,-500.0,0.00021643,2]
[389971384,1759913453703,-225.53422186,0.00021643,2]
[389971387,1759913453715,-1806.65,0.00021643,2]
[389971388,1759913453724,-794.23,0.00021643,2]
[389971390,1759913453733,-901.23475056,0.00021643,2]
[389971392,1759913453743,-500.0,0.00021643,2]
[389971394,1759913453753,-428.099582,0.00021643,7]
[389971397,1759913453765,-428.099582,0.00021643,7]
[389971399,1759913453775,-428.099582,0.00021643,7]
[389971401,1759913453787,-428.099582,0.00021643,7]
[389971402,1759913453797,-500.0,0.00021643,2]
[389971405,1759913453808,-428.099582,0.00021643,7]
[389971407,1759913453820,-428.099582,0.00021643,7]
[389971409,1759913453830,-428.099582,0.00021643,7]
[389971411,1759913453839,-428.099582,0.00021643,7]
[389971412,1759913453850,-428.099582,0.00021643,7]
[389971415,1759913453861,-428.099582,0.00021643,7]
[389971417,1759913453873,-428.099582,0.00021643,7]
[389971419,1759913453884,-1646.66,0.00021643,2]
[389971421,1759913453896,-428.099582,0.00021643,7]
[389971423,1759913453904,-500.0,0.00021643,2]
[389971425,1759913453913,-428.099582,0.00021643,7]
[389971426,1759913453922,-619.78,0.00021643,2]
[389971428,1759913453932,-428.099582,0.00021643,7]
[389971431,1759913453942,-428.099582,0.00021643,7]
[389971433,1759913453953,-1000.0,0.00021643,2]
[389971435,1759913453963,-428.09959,0.00021643,7]
[389971437,1759913453974,-151.0,0.00021643,7]
[389971438,1759913453984,-151.0,0.00021643,7]
[389971440,1759913453993,-151.0,0.00021643,7]
[389971442,1759913454003,-500.0,0.00021643,2]
[389971444,1759913454013,-500.0,0.00021643,2]
[389971446,1759913454023,-500.0,0.00021643,2]
[389971449,1759913454035,-500.0,0.00021643,2]
[389971450,1759913454044,-510.11941588,0.00021643,2]
[389971452,1759913454055,-500.0,0.00021643,2]
[389971454,1759913454064,-1306.84,0.00021643,2]
[389971456,1759913454075,-500.0,0.00021643,2]
[389971458,1759913454085,-500.0,0.00021643,2]
[389971461,1759913454096,-580.48668228,0.00021643,2]
[389971463,1759913454107,-1860.14889271,0.00021643,2]
[389971571,1759913455386,-348.66,0.00021358,10]
[389971572,1759913455395,-151.0,0.00021369,7]
[389971574,1759913455406,-502.3000387,0.00021369,2]
[389971576,1759913455416,-11002.95,0.00021369,2]
[389971578,1759913455425,-317.20110729,0.00021643,2]
[389971580,1759913455434,-1112.03,0.00021643,2]
[389971581,1759913455443,-518.51,0.00021643,2]
[389971583,1759913455452,-1302.4,0.00021643,2]
[389971585,1759913455462,-791.82,0.00021643,2]
[389971587,1759913455471,-500.0,0.00021643,2]
[389971589,1759913455481,-500.0,0.00021643,2]
[389971590,1759913455490,-500.0,0.00021643,2]
[389971592,1759913455501,-500.0,0.00021643,2]
[389971594,1759913455513,-519.18,0.00021643,2]
[389971596,1759913455522,-500.0,0.00021643,2]
[389971597,1759913455531,-746.88,0.00021643,2]
[389971599,1759913455541,-6229.14,0.00021643,2]
[389971601,1759913455550,-152.38589367,0.00021643,2]
[389971602,1759913455559,-151.82767942,0.00021643,2]
[389971604,1759913455569,-151.27733105,0.00021643,2]
[389971606,1759913455578,-972.97,0.00021643,2]
[389971608,1759913455586,-517.32184556,0.00021643,2]
[389971609,1759913455595,-152.00814795,0.00021643,2]
[389971611,1759913455605,-151.0,0.00021643,7]
[389971613,1759913455615,-151.0,0.00021643,7]
[389971615,1759913455624,-151.35364167,0.00021643,2]
[389971617,1759913455633,-151.0,0.00021643,7]
[389971619,1759913455643,-636.39,0.00021643,2]
[389971621,1759913455653,-210.106978,0.00021643,7]
[389971623,1759913455663,-151.21981195,0.00021643,2]
[389971625,1759913455672,-554.32,0.00021643,2]
[389971627,1759913455682,-500.0,0.00021643,2]
[389971629,1759913455691,-500.0,0.00021643,2]
[389971631,1759913455700,-1727.69,0.00021643,2]
[389971633,1759913455710,-500.0,0.00021643,2]
[389971635,1759913455721,-1075.08,0.00021643,2]
[389971637,1759913455735,-500.0,0.00021643,2]
[389971639,1759913455746,-500.0,0.00021643,2]
[389971641,1759913455755,-500.0,0.00021643,2]
[389971643,1759913455764,-500.0,0.00021643,2]
[389971645,1759913455774,-500.0,0.00021643,2]
[389971647,1759913455785,-500.0,0.00021643,2]
[389971649,1759913455795,-2905.59,0.00021643,2]
[389971650,1759913455805,-500.0,0.00021643,2]
[389971653,1759913455815,-634.54,0.00021643,2]
[389971655,1759913455825,-1103.5,0.00021643,2]
[389971657,1759913455836,-500.0,0.00021643,2]
[389971659,1759913455851,-864.82,0.00021643,2]
[389971661,1759913455860,-655.84,0.00021643,2]
[389971663,1759913455871,-1245.2,0.00021643,2]
[389971665,1759913455880,-890.71,0.00021643,2]
[389971667,1759913455889,-500.0,0.00021643,2]
[389971669,1759913455899,-500.0,0.00021643,2]
[389971671,1759913455908,-418.70362787,0.00021643,2]
[389971673,1759913455919,-500.0,0.00021643,2]
[389971674,1759913455935,-2880.48,0.00021643,2]
[389971676,1759913455943,-500.0,0.00021643,2]
[389971678,1759913455953,-151.0,0.00021643,7]
[389971680,1759913455962,-151.0,0.00021643,7]
[389971682,1759913455971,-151.0,0.00021643,7]
[389971684,1759913455980,-2154.51,0.00021643,2]
[389971686,1759913455990,-500.0,0.00021643,2]
[389971688,1759913456000,-279.973015,0.00021643,7]
[389971690,1759913456010,-500.0,0.00021643,2]
[389971693,1759913456020,-500.0,0.00021643,2]
[389971695,1759913456030,-481.20811597,0.00021643,2]
[389971697,1759913456039,-500.0,0.00021643,2]
[389971699,1759913456051,-500.0,0.00021643,2]
[389971701,1759913456060,-151.0,0.00021643,7]
[389971702,1759913456069,-662.23,0.00021643,2]
[389971703,1759913456078,-574.51,0.00021643,2]
[389971704,1759913456087,-152.642974,0.00021643,7]
[389971705,1759913456096,-530.71968817,0.00021643,2]
[389971706,1759913456105,-151.0,0.00021643,7]
[389971707,1759913456113,-151.58779,0.00021643,7]
[389971708,1759913456124,-500.0,0.00021643,2]
[389971709,1759913456140,-500.0,0.00021643,2]
[389971710,1759913456149,-500.0,0.00021643,2]
[389971711,1759913456158,-151.0,0.00021643,7]
[389971712,1759913456167,-1135.42,0.00021643,2]
[389971713,1759913456175,-151.0,0.00021643,7]
[389971714,1759913456185,-151.0,0.00021643,7]
[389971715,1759913456194,-151.0,0.00021643,7]
[389971716,1759913456204,-151.0,0.00021643,7]
[389971717,1759913456212,-151.0,0.00021643,7]
[389971718,1759913456221,-467.12520212,0.00021643,2]
[389971719,1759913456230,-151.0,0.00021643,7]
[389971720,1759913456239,-159.201531,0.00021643,7]
[389971721,1759913456248,-500.0,0.00021643,2]
[389971722,1759913456257,-2101.75,0.00021643,2]
[389971723,1759913456266,-500.0,0.00021643,2]
[389971724,1759913456275,-874.21,0.00021643,2]
[389971725,1759913456284,-500.0,0.00021643,2]
[389971726,1759913456293,-500.0,0.00021643,2]
[389971727,1759913456302,-500.0,0.00021643,2]
[389971728,1759913456311,-1743.28,0.00021643,2]
[389971729,1759913456320,-500.0,0.00021643,2]
[389971741,1759913456506,-500.0,0.00021643,2]
[389971744,1759913456517,-500.0,0.00021643,2]
[389971746,1759913456526,-571.66,0.00021643,2]
[389971748,1759913456535,-500.0,0.00021643,2]
[389971750,1759913456545,-500.0,0.00021643,2]
[389971752,1759913456554,-151.0,0.00021643,7]
[389971754,1759913456563,-160.730606,0.00021643,7]
[389971756,1759913456572,-500.0,0.00021643,2]
[389971757,1759913456581,-2241.08,0.00021643,2]
[389971759,1759913456590,-500.0,0.00021643,2]
[389971761,1759913456600,-1065.5,0.00021643,2]
[389971763,1759913456609,-612.62,0.00021643,2]
[389971765,1759913456624,-1292.84,0.00021643,2]
[389971768,1759913456633,-500.0,0.00021643,2]
[389971770,1759913456644,-5907.89,0.00021643,2]
[389971772,1759913456653,-500.0,0.00021643,2]
[389971773,1759913456663,-871.6,0.00021643,2]
[389971775,1759913456672,-500.0,0.00021643,2]
[389971777,1759913456682,-2282.0,0.00021643,2]
[389971779,1759913456692,-151.0,0.00021643,7]
[389971781,1759913456701,-151.0,0.00021643,7]
[389971783,1759913456711,-151.0,0.00021643,7]
[389971785,1759913456721,-151.0,0.00021643,7]
[389971787,1759913456730,-151.0,0.00021643,7]
[389971789,1759913456740,-151.0,0.00021643,7]
[389971791,1759913456749,-500.0,0.00021643,2]
[389971793,1759913456759,-500.0,0.00021643,2]
[389971795,1759913456769,-500.0,0.00021643,2]
[389971797,1759913456779,-151.0,0.00021643,7]
[389971799,1759913456788,-151.0,0.00021643,7]
[389971801,1759913456798,-151.0,0.00021643,7]
[389971804,1759913456810,-151.0,0.00021643,7]
[389971806,1759913456820,-151.0,0.00021643,7]
[389971808,1759913456829,-1145.13,0.00021643,2]
[389971810,1759913456838,-151.0,0.00021643,7]
[389971812,1759913456848,-2433.05,0.00021643,2]
[389971814,1759913456858,-500.0,0.00021643,2]
[389971816,1759913456867,-500.0,0.00021643,2]
[389971818,1759913456876,-636.69,0.00021643,2]
[389971819,1759913456886,-919.96,0.00021643,2]
[389971820,1759913456895,-512.96,0.00021643,2]
[389971821,1759913456905,-500.0,0.00021643,2]
[389971822,1759913456914,-1263.89,0.00021643,2]
[389971823,1759913456924,-2548.97,0.00021643,2]
[389971824,1759913456933,-500.0,0.00021643,2]
[389971825,1759913456943,-941.3,0.00021643,2]
[389971826,1759913456953,-502.00537925,0.00021643,2]
[389971827,1759913456963,-464.29749969,0.00021643,2]
[389971828,1759913456972,-500.0,0.00021643,2]
[389971829,1759913456981,-500.0,0.00021643,2]
[389971830,1759913456990,-500.0,0.00021643,2]
[389971831,1759913457000,-500.0,0.00021643,2]
[389971832,1759913457010,-500.0,0.00021643,2]
[389971833,1759913457019,-500.0,0.00021643,2]
[389971834,1759913457030,-500.0,0.00021643,2]
[389971835,1759913457040,-500.0,0.00021643,2]
[389971836,1759913457049,-1067.97,0.00021643,2]
[389971837,1759913457059,-500.0,0.00021643,2]
[389971838,1759913457068,-500.0,0.00021643,2]
[389971839,1759913457078,-2236.62,0.00021643,2]
[389971840,1759913457088,-563.52,0.00021643,2]
[389971841,1759913457098,-500.0,0.00021643,2]
[389971842,1759913457107,-179.816372,0.00021643,7]
[389971843,1759913457117,-753.43,0.00021643,2]
[389971844,1759913457129,-876.05,0.00021643,2]
[389971846,1759913457138,-500.0,0.00021643,2]
[389971847,1759913457147,-1136.12,0.00021643,2]
[389971849,1759913457156,-500.0,0.00021643,2]
[389971851,1759913457170,-247.11442217,0.00021643,2]
[389971855,1759913457191,-252.88557783,0.00021643,2]
[389971857,1759913457201,-500.0,0.00021643,2]
[389971859,1759913457213,-745.87,0.00021643,2]
[389971861,1759913457222,-500.0,0.00021643,2]
[389971863,1759913457232,-2345.64092001,0.00021643,2]
[389971865,1759913457243,-273.04907999,0.00021643,2]
[389971867,1759913457252,-866.75,0.00021643,2]
[389971869,1759913457262,-500.0,0.00021643,2]
[389971870,1759913457271,-569.81,0.00021643,2]
[389971872,1759913457280,-90.39092001,0.00021643,7]
[389971878,1759913564817,156.590762,0.00024,30]
[389971879,1759913726310,310.89,0.00023962,30]
[389971880,1759913855171,2501.66,0.00026,60]
[389971881,1759913884106,2500.0,0.00026,60]
[389971882,1759913933937,249.87697696,0.00018,2]
[389971883,1759914016122,-150.0,0.00018034,2]
[389971884,1759914016150,-200.0,0.00018034,2]
[389971885,1759914016177,-151.0,0.000181,2]
[389971886,1759914016203,-151.0,0.00018134,2]
[389971887,1759914016231,-151.0,0.00018168,2]
[389971888,1759914016259,-151.0,0.00018203,2]
[389971889,1759914016285,-151.0,0.00018237,2]
[389971890,1759914016310,-151.0,0.00018272,2]
[389971891,1759914016335,-151.0,0.00018306,2]
[389971892,1759914016360,-151.0,0.00018341,2]
[389971893,1759914016386,-151.0,0.00018375,2]
[389971894,1759914016414,-151.0,0.0001841,2]
[389971895,1759914016440,-228.5651549,0.00018416,2]
[389971896,1759914016468,-151.0,0.00018444,2]
[389971897,1759914016494,-151.0,0.00018479,2]
[389971898,1759914016519,-151.0,0.00018513,2]
[389971899,1759914016546,-151.0,0.00018548,2]
[389971900,1759914016573,-151.0,0.00018582,2]
[389971901,1759914016600,-151.0,0.00018617,2]
[389971902,1759914016627,-172.5,0.00018634,2]
[389971903,1759914016654,-151.0,0.00018651,2]
[389971904,1759914016680,-151.0,0.00018686,2]
[389971905,1759914016708,-151.0,0.0001872,2]
[389971906,1759914016734,-151.0,0.00018755,2]
[389971907,1759914016764,-151.0,0.00018789,2]
[389971908,1759914016791,-151.0,0.00018824,2]
[389971909,1759914016821,-300.0,0.00018824,2]
[389971910,1759914016850,-239.0,0.00018824,2]
[389971911,1759914016880,-151.0,0.00018858,2]
[389971912,1759914016908,-151.0,0.00018893,2]
[389971913,1759914016936,-20.8796902,0.00018927,2]
[389971914,1759914017454,-130.1203098,0.00018927,2]
[389971915,1759914017483,-151.0,0.00018962,2]
[389971916,1759914017511,-151.0,0.00018996,2]
[389971917,1759914017538,-151.0,0.00019031,2]
[389971918,1759914017566,-151.0,0.00019065,2]
[389971919,1759914017593,-151.0,0.000191,2]
[389971920,1759914017622,-195.0,0.00019234,2]
[389971921,1759914017650,-217.5,0.00019834,2]
[389971922,1759914018565,-261.75757329,0.00019178,2]
[389971923,1759914020140,-8868.34026629,0.00020427,2]
[389971924,1759914022005,-264.46656629,0.00020427,2]
[389971925,1759914022028,-9471.07686742,0.00020427,2]
[389971926,1759914062348,300.0,0.00020426,2]
[389971927,1759914064181,1000.0,0.00020081,2]
[389971928,1759914103426,4910.3242359,0.00020256,2]
[389971929,1759914122645,300.0,0.00020426,2]
[389971930,1759914182632,199.0,0.00020426,2]
[389971931,1759914188781,2068.68637,0.00027,120]
[389971932,1759914216814,-500.0,0.00020427,2]
[389971933,1759914216841,-500.0,0.00020427,2]
[389971934,1759914216869,-500.0,0.00020427,2]
[389971935,1759914216896,-500.0,0.00020427,2]
[389971936,1759914216924,-500.0,0.00020427,2]
[389971937,1759914216952,-500.0,0.00020427,2]
[389971938,1759914216980,-500.0,0.00020427,2]
[389971939,1759914217007,-500.0,0.00020427,2]
[389971940,1759914217035,-500.0,0.00020427,2]
[389971941,1759914217063,-500.0,0.00020427,2]
[389971942,1759914217227,-500.0,0.00020427,2]
[389971943,1759914217256,-500.0,0.00020427,2]
[389971944,1759914217284,-500.0,0.00020427,2]
[389971945,1759914217311,-500.0,0.00020427,2]
[389971946,1759914217339,-500.0,0.00020427,2]
[389971947,1759914217366,-500.0,0.00020427,2]
[389971948,1759914217395,-500.0,0.00020427,2]
[389971949,1759914217424,-500.0,0.00020427,2]
[389971950,1759914217616,6012.57855462,0.00020327,2]
[389971951,1759914222848,-9278.13720948,0.00020427,2]
[389971952,1759914222973,-4143.2251529,0.00020427,2]
[389971953,1759914223001,-1713.5596942,0.00020427,2]
[389971954,1759914233177,167.8514756,0.0002023,14]
[389971957,1759914447127,-160.921377,0.00019854,2]
[389971958,1759914447149,-817.67774769,0.00020176,2]
[389971959,1759914466282,-995.76555211,0.0002005,2]
[389971960,1759914466308,-506.36045319,0.00020176,2]
[389971961,1759914466334,-252.74429329,0.00020334,2]
[389971962,1759914466361,-1324.03820088,0.00020416,2]
[389971963,1759914466388,-782.0853203,0.00020427,2]
[389971964,1759914466554,-2110.17088486,0.00020427,2]
[389971965,1759914468156,-167.8514756,0.00020427,2]
[389971966,1759914468183,-240.0,0.00020434,2]
[389971967,1759914468209,-1324.03820088,0.00020679,2]
[389971968,1759914468236,-177.88318457,0.000207,2]
[389971969,1759914468264,-745.0,0.00020732,2]
[389971970,1759914468292,-300.0,0.00020732,2]
[389971971,1759914468319,-234.25206901,0.00020733,2]
[389971972,1759914468346,-402.0838479,0.00020733,2]
[389971973,1759914468373,-160.0,0.00020733,2]
[389971974,1759914468401,-160.0,0.00020733,2]
[389971975,1759914468428,-160.0,0.00020733,2]
[389971976,1759914468455,-160.0,0.00020733,2]
[389971977,1759914483029,300.0,0.00020732,2]
[389971983,1759914501543,1237.79244408,0.000207,3]
[389971984,1759914501566,7607.08755592,0.000207,3]
[389972025,1759914632594,-496.24129189,0.00020082,4]
[389972027,1759914632603,-72.63870811,0.000207,2]
[389972177,1759914638626,-105.24447646,0.000207,2]
[389972179,1759914638637,-150.0,0.00020733,2]
[389972181,1759914638647,-249.097,0.000209,2]
[389972183,1759914638658,-177.88318457,0.000209,2]
[389972185,1759914638668,-168.0,0.00021111,2]
[389972187,1759914638679,-177.88318457,0.000212,2]
[389972189,1759914638689,-168.0,0.00021225,2]
[389972191,1759914638699,-160.0,0.00021261,2]
[389972193,1759914638708,-965.70447081,0.00021269,2]
[389972195,1759914638718,-22391.02901652,0.00021333,2]
[389972197,1759914638728,-172.5,0.00021333,2]
[389972199,1759914638738,-1074.13661856,0.00021355,2]
[389972201,1759914638748,-183.41862521,0.00021355,2]
[389972203,1759914638758,-500.0,0.00021355,2]
[389972205,1759914638767,-500.0,0.00021355,2]
[389972207,1759914638777,-353.00175403,0.00021355,2]
[389972209,1759914638789,-405.0,0.00021355,2]
[389972211,1759914638800,-549.8892917,0.00021355,2]
[389972213,1759914638810,-465.60435735,0.00021355,2]
[389972215,1759914638820,-15518.53191909,0.00021356,2]
[389972217,1759914638833,-3085.35178091,0.00021356,2]
[389972219,1759914638842,-500.0,0.00021356,2]
[389972221,1759914638853,-500.0,0.00021356,2]
[389972223,1759914638863,-500.0,0.00021356,2]
[389972225,1759914638874,-500.0,0.00021356,2]
[389972227,1759914638883,-500.0,0.00021356,2]
[389972229,1759914638892,-500.0,0.00021356,2]
[389972231,1759914638901,-500.0,0.00021356,2]
[389972233,1759914638911,-500.0,0.00021356,2]
[389972235,1759914638921,-500.0,0.00021356,2]
[389972237,1759914638930,-264.1478051,0.00021356,2]
[389972239,1759914638939,-592.07454313,0.00021359,3]
[389972241,1759914638952,-379.39545687,0.00021359,3]
[389972243,1759914638962,-485.73,0.00021359,3]
[389972245,1759914638972,-242.87,0.00021359,3]
[389972247,1759914638981,-728.61,0.00021359,3]
[389972249,1759914638991,-173.06,0.00021359,3]
[389972251,1759914639000,-519.18,0.00021359,3]
[389972253,1759914639011,-454.26,0.00021359,10]
[389972255,1759914639021,-378.55,0.00021359,10]
[389972257,1759914639030,-306.68245578,0.00021368,2]
[389972259,1759914639040,-799.37633197,0.00021368,2]
[389972261,1759914639049,-313.57071859,0.00021369,2]
[389972263,1759914639059,-509.39896462,0.00021369,2]
[389972265,1759914639068,-500.0,0.00021369,2]
[389972266,1759914639079,-500.0,0.00021369,2]
[389972268,1759914639088,-501.31174321,0.00021369,2]
[389972271,1759914639100,-169.32076561,0.00021369,2]
[389972273,1759914639110,-500.0,0.00021369,2]
[389972275,1759914639119,-487.17678357,0.00021369,2]
[389972276,1759914639129,-500.0,0.00021369,2]
[389972278,1759914639139,-500.0,0.00021369,2]
[389972280,1759914639149,-722.45,0.00021369,2]
[389972282,1759914639159,-574.12956422,0.00021369,2]
[389972284,1759914639169,-500.0,0.00021369,2]
[389972286,1759914639178,-501.15620513,0.00021369,2]
[389972288,1759914639189,-500.0,0.00021369,2]
[389972290,1759914639199,-520.0,0.00021369,3]
[389972292,1759914639209,-500.0,0.00021369,2]
[389972294,1759914639218,-385.30419613,0.00021369,2]
[389972296,1759914639228,-500.0,0.00021369,2]
[389972298,1759914639238,-500.0,0.00021369,2]
[389972300,1759914639247,-500.0,0.00021369,2]
[389972302,1759914639257,-500.0,0.00021369,2]
[389972304,1759914639267,-500.0,0.00021369,2]
[389972306,1759914639283,-523.68002667,0.00021369,2]
[389972308,1759914639302,-500.0,0.00021369,2]
[389972309,1759914639311,-500.0,0.00021369,2]
[389972311,1759914639322,-500.0,0.00021369,2]
[389972313,1759914639332,-887.45,0.00021369,2]
[389972315,1759914639341,-632.65,0.00021369,2]
[389972317,1759914639351,-1387.33,0.00021369,2]
[389972319,1759914639361,-500.0,0.00021369,2]
[389972321,1759914639370,-1441.11,0.00021369,2]
[389972323,1759914639379,-500.0,0.00021369,2]
[389972325,1759914639389,-500.0,0.00021369,2]
[389972327,1759914639398,-394.1520524,0.00021369,2]
[389972329,1759914639408,-242.51036624,0.00021369,2]
[389972331,1759914639417,-500.0,0.00021369,2]
[389972333,1759914639426,-500.0,0.00021369,2]
[389972335,1759914639436,-430.66497845,0.00021369,2]
[389972337,1759914639446,-728.05,0.00021369,2]
[389972339,1759914639455,-365.34343727,0.00021369,2]
[389972344,1759914639496,-134.65656273,0.00021369,2]
[389972346,1759914639506,-500.0,0.00021369,2]
[389972348,1759914639515,-644.36890799,0.00021369,2]
[389972350,1759914639526,-355.63109201,0.00021369,2]
[389972352,1759914639535,-680.78890799,0.00021369,2]
[389972989,1759914646765,-315.46,0.00021359,10]
[389972991,1759914646775,-324.46109201,0.00021369,2]
[389972993,1759914646785,-500.0,0.00021369,2]
[389972995,1759914646798,-500.0,0.00021369,2]
[389972996,1759914646808,-932.43,0.00021369,2]
[389972997,1759914646817,-500.0,0.00021369,2]
[389972998,1759914646826,-500.0,0.00021369,2]
[389972999,1759914646836,-500.0,0.00021369,2]
[389973000,1759914646844,-500.0,0.00021369,2]
[389973002,1759914646853,-500.0,0.00021369,2]
[389973003,1759914646864,-500.0,0.00021369,2]
[389973005,1759914646873,-1019.36,0.00021369,2]
[389973006,1759914646881,-500.0,0.00021369,2]
[389973007,1759914646890,-500.0,0.00021369,2]
[389973008,1759914646899,-684.64,0.00021369,2]
[389973009,1759914646908,-681.64890801,0.00021369,2]
[389973925,1759914764717,158.571962,0.00024,30]
[389973926,1759914962635,1335.17684191,0.00019541,2]
[389973927,1759914979690,490.0,0.00019754,2]
[389973928,1759915243155,151.0,0.000181,2]
[389973929,1759915243633,151.0,0.000183,2]
[389973930,1759915244138,151.0,0.000185,2]
[389973931,1759915244679,151.0,0.000187,2]
[389973932,1759915245143,151.0,0.000189,2]
[389973933,1759915245661,151.0,0.000191,2]
[389973935,1759915423157,302.57643837,0.00019655,2]
[389973936,1759915447316,1335.17684191,0.00019527,2]
[389973937,1759915453677,-218.17001836,0.00019754,2]
[389973938,1759915453706,-313.39297266,0.00019754,2]
[389973939,1759915453735,-166.83860271,0.00019754,2]
[389973940,1759915453763,-453.86465756,0.00019852,4]
[389973941,1759915453791,-1335.17684191,0.00019927,2]
[389973942,1759915453819,-666.0,0.00020001,2]
[389973943,1759915453847,-453.86465756,0.00020048,4]
[389973944,1759915453876,-1335.17684191,0.00020062,2]
[389973945,1759915457572,-151.69620782,0.00020245,4]
[389973946,1759915457600,-1163.3537331,0.00020259,2]
[389973947,1759915457629,-191.86439311,0.00020354,2]
[389973948,1759915457658,-1335.17684191,0.00020507,2]
[389973949,1759915457687,-1323.82764812,0.00020605,2]
[389973950,1759915461584,-1668.17235188,0.00020605,2]
[389973951,1759915461611,-1335.17684191,0.00020661,2]
[389973952,1759915496289,-177.88318457,0.000207,2]
[389973953,1759915496319,-300.0,0.00020701,2]
[389973954,1759915496349,-1200.0,0.00020739,2]
[389973955,1759915496378,-160.0,0.0002074,2]
[389973956,1759915496407,-177.88318457,0.000209,2]
[389973957,1759915496436,-216.89018352,0.00020954,2]
[389973958,1759915496465,-1335.17684191,0.00020963,2]
[389973959,1759915500049,-1176.55807377,0.00020966,2]
[389973960,1759915502116,-10000.01,0.00020966,2]
[389973961,1759915506045,-1200.0,0.00020965,2]
[389973962,1759915506075,-212.0,0.00020965,2]
[389973963,1759915506130,-7176.01,0.00020966,2]
[389973965,1759915524192,604.42,0.00028767,120]
[389973969,1759915627160,-213.45982148,0.000207,2]
[389973970,1759915627181,-910.72354179,0.00020755,2]
[389973971,1759915627201,-160.0,0.00020755,2]
[389973972,1759915627223,-6.29944237,0.000209,2]
[389973976,1759915644091,-199.74460254,0.000209,2]
[389973977,1759915691595,490.550266,0.00013699,2]
[389974012,1759915832003,-1200.0,0.00019999,2]
[389974013,1759915832013,-33399.16349507,0.0002,2]
[389974014,1759915832022,-164.97286529,0.0002,2]
[389974015,1759915832032,-200.0,0.0002,2]
[389974016,1759915832041,-490.550266,0.00020187,2]
[389974017,1759915832051,-189.71879508,0.000206,2]
[389974018,1759915832060,-161.94881025,0.000207,2]
[389974019,1759915832069,-3401.6319743,0.00020862,2]
[389974020,1759915832079,-161.94881025,0.000209,2]
[389974021,1759915832088,-13089.43686823,0.00020966,2]
[389974022,1759915832098,-476.85890032,0.00020993,2]
[389974023,1759915832107,-433.0,0.00021016,2]
[389974024,1759915832116,-2992.0,0.00021164,2]
[389974025,1759915832126,-214.46472488,0.000212,2]
[389974026,1759915832135,-161.94881025,0.000212,2]
[389974027,1759915832144,-316.0692995,0.00021243,2]
[389974028,1759915832154,-10166.57837549,0.00021269,2]
[389974029,1759915832165,-3058.75,0.00021269,2]
[389974030,1759915832181,-447.14058132,0.00021269,2]
[389974057,1759915837642,-160.0,0.0002074,2]
[389974059,1759915837653,-2087.89178011,0.00021269,2]
[389974061,1759915837664,-350.49699501,0.00021312,2]
[389974063,1759915837674,-262.88,0.00021333,10]